bitfinex-derivatives/quotes_BTCF0:USTF0_20250926
["timestamp","ask_amount","ask_price","bid_price","bid_amount"]
[1758852889820,0.85632,109710.0,109700.0,0.80023]
[1758852890018,0.947414,109710.0,109700.0,0.80023]
[1758852890218,1.30643185,109710.0,109700.0,0.80023]
[1758852890426,0.947414,109710.0,109700.0,1.15924785]
[1758852890828,0.947414,109710.0,109700.0,0.43943]
[1758852890829,1.30643185,109710.0,109700.0,0.43943]
[1758852891021,0.947414,109710.0,109700.0,0.43943]
[1758852895633,0.947414,109710.0,109700.0,0.80023]
[1758852896731,0.946414,109710.0,109700.0,0.80023]
[1758852897129,0.946414,109710.0,109700.0,0.80923]
[1758852899031,0.946414,109710.0,109700.0,0.44843]
[1758852900331,1.30543185,109710.0,109700.0,0.44143]
[1758852900926,2.06623185,109710.0,109700.0,0.09442488]
[1758852901227,2.06623185,109710.0,109700.0,0.0841302]
[1758852901726,0.0911106,109690.0,109680.0,0.01354]
[1758852901919,2.06596845,109690.0,109680.0,0.01354]
[1758852902117,3.91476845,109690.0,109680.0,0.01354]
[1758852902518,3.93702883,109690.0,109680.0,0.01354]
[1758852902923,3.93702883,109690.0,109680.0,0.03634]
[1758852902924,1.32921098,109690.0,109680.0,0.03634]
[1758852903135,1.3069506,109690.0,109680.0,0.03634]
[1758852903336,0.9461506,109690.0,109680.0,0.03634]
[1758852903525,0.0911106,109690.0,109680.0,0.03634]
[1758852903831,0.9421506,109690.0,109680.0,0.03634]
[1758852904036,0.73815863,109700.0,109690.0,0.03649]
[1758852904037,0.83305721,109700.0,109690.0,0.03649]
[1758852904229,1.7602217,109700.0,109690.0,0.03649]
[1758852905334,1.37907239,109700.0,109690.0,0.03649]
[1758852905535,0.07212449,109700.0,109690.0,0.48661855]
[1758852905724,0.85508,109700.0,109690.0,0.84741855]
[1758852906121,0.85608,109700.0,109690.0,0.84741855]
[1758852906426,0.85608,109700.0,109690.0,0.75630785]
[1758852906730,0.001,109700.0,109690.0,0.84741855]
[1758852906930,0.86004,109700.0,109690.0,1.24741855]
[1758852907536,0.85604,109700.0,109690.0,1.24941855]
[1758852908037,0.85504,109700.0,109690.0,1.24941855]
[1758852908336,0.85504,109700.0,109690.0,1.25141855]
[1758852908734,0.85504,109700.0,109690.0,1.27138842]
[1758852909839,0.85504,109700.0,109690.0,1.27338842]
[1758852910644,0.85504,109700.0,109690.0,0.91437057]
[1758852910930,0.85504,109700.0,109690.0,1.27338842]
[1758852911334,0.9461424,109700.0,109690.0,0.8944007]
[1758852911539,0.9461424,109700.0,109690.0,0.80329]
[1758852911734,0.9461424,109700.0,109690.0,0.79929]
[1758852912037,0.9461424,109700.0,109690.0,0.44249]
[1758852912335,0.9461424,109700.0,109690.0,0.50589392]
[1758852912540,0.9461424,109700.0,109690.0,0.50789392]
[1758852913137,0.9461424,109700.0,109690.0,0.50589392]
[1758852913337,0.9461424,109700.0,109690.0,0.52519896]
[1758852913639,0.85504,109700.0,109690.0,0.8924007]
[1758852914842,0.88533681,109710.0,109700.0,0.03649]
[1758852915044,1.74033681,109710.0,109700.0,0.10189097]
[1758852915841,1.37953681,109710.0,109700.0,0.10189097]
[1758852916331,1.02051896,109710.0,109700.0,0.10189097]
[1758852917640,1.74033681,109710.0,109700.0,0.10189097]
[1758852919539,1.74133681,109710.0,109700.0,0.10189097]
[1758852919937,1.74133681,109710.0,109700.0,0.07905097]
[1758852920235,2.14133681,109710.0,109700.0,0.01365]
[1758852920538,2.14733681,109710.0,109700.0,0.01365]
[1758852920935,1.29233681,109710.0,109700.0,0.03649]
[1758852921142,1.38827896,109710.0,109700.0,0.10189097]
[1758852922228,1.38727896,109710.0,109700.0,0.10189097]
[1758852923841,1.02647896,109710.0,109700.0,0.10189097]
[1758852924034,1.02747896,109710.0,109700.0,0.10189097]
[1758852925234,1.38649681,109710.0,109700.0,0.10189097]
[1758852926138,1.02747896,109710.0,109700.0,0.10189097]
[1758852926745,0.007,109710.0,109700.0,0.55201122]
[1758852926942,0.86188,109710.0,109700.0,0.55201122]
[1758852927143,0.9529741,109710.0,109700.0,0.55201122]
[1758852928743,0.9519741,109710.0,109700.0,0.55201122]
[1758852929247,0.86088,109710.0,109700.0,0.55201122]
[1758852929548,0.006,109710.0,109700.0,1.42031867]
[1758852929746,0.86084,109710.0,109700.0,1.42031867]
[1758852929946,0.86084,109710.0,109700.0,1.33856379]
[1758852930152,0.85484,109710.0,109700.0,1.33856379]
[1758852930340,0.0910834,109730.0,109720.0,0.03621]
[1758852930647,0.8459234,109730.0,109720.0,0.19265478]
[1758852930841,0.91922305,109730.0,109720.0,0.19265478]
[1758852931045,0.87844203,109750.0,109740.0,0.01349]
[1758852931244,3.31420508,109750.0,109740.0,0.03621]
[1758852931441,3.67322293,109750.0,109740.0,0.03621]
[1758852931748,3.69253371,109750.0,109740.0,0.03621]
[1758852932047,3.67322293,109750.0,109740.0,0.03621]
[1758852932349,3.53490174,109750.0,109740.0,0.03621]
[1758852932544,3.5332041,109750.0,109740.0,0.03621]
[1758852932944,3.552607,109750.0,109740.0,0.03621]
[1758852933247,3.5372041,109750.0,109740.0,0.03621]
[1758852933447,3.17818625,109750.0,109740.0,0.03621]
[1758852933741,3.5372041,109750.0,109740.0,0.03621]
[1758852933947,3.24797115,109750.0,109740.0,0.03621]
[1758852934148,3.26497115,109750.0,109740.0,0.03621]
[1758852934346,2.9059533,109750.0,109740.0,0.03621]
[1758852934548,2.9059533,109750.0,109740.0,0.39701]
[1758852935350,2.83438625,109750.0,109740.0,0.39701]
[1758852935545,0.03960535,109750.0,109740.0,0.84709745]
[1758852935738,0.021,109750.0,109740.0,0.91245643]
[1758852935943,0.87568,109750.0,109740.0,1.31245643]
[1758852936249,0.87568,109750.0,109740.0,1.40357675]
[1758852938254,0.87568,109750.0,109740.0,1.33821777]
[1758852939652,0.87568,109750.0,109740.0,0.84714817]
[1758852940947,0.87568,109750.0,109740.0,0.93821777]
[1758852941251,0.85452,109750.0,109740.0,1.00357675]
[1758852942250,0.85452,109750.0,109740.0,1.4755656]
[1758852943248,0.9455813,109750.0,109740.0,1.4755656]
[1758852943545,0.9455813,109750.0,109740.0,1.31913702]
[1758852944448,0.9455813,109750.0,109740.0,1.32213702]
[1758852944951,0.85452,109750.0,109740.0,1.41320662]
[1758852945151,0.85452,109750.0,109740.0,1.41020662]
[1758852945350,0.85452,109750.0,109740.0,1.41220662]
[1758852945851,0.85452,109750.0,109740.0,1.43720662]
[1758852946154,0.85452,109750.0,109740.0,1.5025656]
[1758852946355,0.9455813,109750.0,109740.0,1.4965656]
[1758852946555,0.9455813,109750.0,109740.0,1.58447009]
[1758852946755,0.9455813,109750.0,109740.0,1.61018071]
[1758852947654,0.9455813,109750.0,109740.0,1.67553969]
[1758852947954,0.9455813,109750.0,109740.0,1.61018071]
[1758852948157,0.85452,109750.0,109740.0,1.61018071]
[1758852948454,0.85452,109750.0,109740.0,1.60818071]
[1758852948654,0.85452,109750.0,109740.0,1.61018071]
[1758852948849,0.9455813,109750.0,109740.0,1.61018071]
[1758852949252,0.9454313,109750.0,109740.0,1.61018071]
[1758852949651,0.9454313,109750.0,109740.0,1.60518071]
[1758852950457,0.9453213,109750.0,109740.0,1.60518071]
[1758852950657,0.9453213,109750.0,109740.0,1.06718877]
[1758852950850,0.9453213,109750.0,109740.0,1.60518071]
[1758852951358,0.85424,109760.0,109750.0,0.1272713]
[1758852951557,0.85424,109760.0,109750.0,0.44506567]
[1758852951756,0.85403,109760.0,109750.0,0.44506567]
[1758852952056,0.85328,109760.0,109750.0,0.44506567]
[1758852952755,0.85328,109760.0,109750.0,0.45306567]
[1758852952756,0.85428,109760.0,109750.0,0.45306567]
[1758852953152,0.85428,109760.0,109750.0,0.90497769]
[1758852953456,0.85428,109760.0,109750.0,1.52517526]
[1758852953653,0.85428,109760.0,109750.0,1.25617929]
[1758852953848,0.85428,109760.0,109750.0,1.32153827]
[1758852954453,0.945333,109760.0,109750.0,1.32153827]
[1758852954757,0.944333,109760.0,109750.0,1.16511799]
[1758852955558,0.944333,109760.0,109750.0,1.16611799]
[1758852955858,1.48232494,109760.0,109750.0,0.40601]
[1758852956156,1.21332897,109760.0,109750.0,0.66800597]
[1758852956354,0.85328,109760.0,109750.0,0.76606727]
[1758852956554,0.944333,109760.0,109750.0,0.72386479]
[1758852956755,1.21332897,109760.0,109750.0,0.72386479]
[1758852956955,1.21332897,109760.0,109750.0,0.81492609]
[1758852957157,1.21332897,109760.0,109750.0,0.76606727]
[1758852957558,1.21332897,109760.0,109750.0,0.40601]
[1758852957761,1.21332897,109760.0,109750.0,0.67500597]
[1758852958055,1.21332897,109760.0,109750.0,0.67300597]
[1758852959152,1.21332897,109760.0,109750.0,0.40401]
[1758852959357,1.21332897,109760.0,109750.0,0.67300597]
[1758852959857,1.22332897,109760.0,109750.0,0.66600597]
[1758852960251,0.86328,109760.0,109750.0,0.75706727]
[1758852960451,1.12627597,109760.0,109750.0,0.75706727]
[1758852960760,1.21732897,109760.0,109750.0,0.75706727]
[1758852960962,1.21732897,109760.0,109750.0,0.66600597]
[1758852961558,1.21732897,109760.0,109750.0,0.39701]
[1758852962060,2.24712494,109760.0,109750.0,0.07884898]
[1758852962355,1.88632494,109760.0,109750.0,0.03493]
[1758852962656,2.24712494,109760.0,109750.0,0.03493]
[1758852962954,0.948333,109760.0,109750.0,0.73008495]
[1758852963162,1.21732897,109760.0,109750.0,0.46108898]
[1758852963358,1.21732897,109760.0,109750.0,0.73008495]
[1758852965057,0.095053,109760.0,109750.0,0.73008495]
[1758852965263,0.86,109760.0,109750.0,1.09014222]
[1758852965457,0.004,109760.0,109750.0,1.51589526]
[1758852965658,2.27892,109790.0,109780.0,0.01312]
[1758852965966,3.44610387,109790.0,109780.0,0.08383132]
[1758852966266,3.44446878,109790.0,109780.0,0.08383132]
[1758852966465,3.51694191,109790.0,109780.0,0.08383132]
[1758852967166,3.53294191,109790.0,109780.0,0.08383132]
[1758852967765,3.53694191,109790.0,109780.0,0.08383132]
[1758852967967,3.53694191,109790.0,109780.0,0.06213132]
[1758852968365,3.53694191,109790.0,109780.0,0.08383132]
[1758852969362,3.53694191,109790.0,109780.0,0.06213132]
[1758852970172,3.53694191,109790.0,109780.0,0.08383132]
[1758852970559,3.53694191,109790.0,109780.0,0.06213132]
[1758852973379,3.26794594,109790.0,109780.0,0.06213132]
[1758852973577,1.68810191,109790.0,109780.0,0.08383132]
[1758852973978,1.68710191,109790.0,109780.0,0.08383132]
[1758852974882,1.67110191,109790.0,109780.0,0.08383132]
[1758852975076,1.67810191,109790.0,109780.0,0.08383132]
[1758852975584,1.67810191,109790.0,109780.0,0.06213132]
[1758852975781,0.53426103,109790.0,109780.0,0.62182326]
[1758852975979,0.1010281,109790.0,109780.0,0.57281194]
[1758852976283,0.9565081,109790.0,109780.0,0.93361194]
[1758852976682,0.99258683,109790.0,109780.0,0.93361194]
[1758852977077,1.2615828,109790.0,109780.0,0.66461597]
[1758852977279,0.4061028,109790.0,109780.0,0.66461597]
[1758852977483,1.2615028,109790.0,109780.0,0.66461597]
[1758852978382,1.2615028,109790.0,109780.0,0.30381597]
[1758852978572,0.99250683,109790.0,109780.0,0.30381597]
[1758852978779,1.2615028,109790.0,109780.0,0.30381597]
[1758852981294,0.9564281,109790.0,109780.0,0.30381597]
[1758852981786,1.22542407,109790.0,109780.0,0.30381597]
[1758852982087,1.22542407,109790.0,109780.0,0.3691644]
[1758852982287,1.22542407,109790.0,109780.0,0.30381597]
[1758852983085,1.22542407,109790.0,109780.0,0.10016843]
[1758852983290,0.9564281,109790.0,109780.0,0.3691644]
[1758852983682,1.22542407,109790.0,109780.0,0.63816037]
[1758852984392,1.22542407,109790.0,109780.0,0.3691644]
[1758852985295,0.9564281,109790.0,109780.0,0.3691644]
[1758852985494,1.22542407,109790.0,109780.0,0.3691644]
[1758852986294,0.9564281,109790.0,109780.0,0.3691644]
[1758852986495,1.22542407,109790.0,109780.0,0.63816037]
[1758852986996,0.9564281,109790.0,109780.0,0.99896037]
[1758852987290,0.01,109790.0,109780.0,1.85007986]
[1758852987691,0.86396,109790.0,109780.0,1.85007986]
[1758852987897,0.86396,109790.0,109780.0,1.51573546]
[1758852988100,0.86396,109790.0,109780.0,1.86643646]
[1758852988694,0.01,109790.0,109780.0,1.86643646]
[1758852988888,0.01,109790.0,109780.0,1.78473143]
[1758852990096,0.1010281,109790.0,109780.0,0.12590712]
[1758852990394,0.37002407,109790.0,109780.0,0.82085939]
[1758852990586,0.37002407,109790.0,109780.0,0.55186342]
[1758852990901,0.37002407,109790.0,109780.0,0.46007723]
[1758852991095,0.1010281,109790.0,109780.0,0.82087723]
[1758852991296,0.1010281,109790.0,109780.0,0.46007723]
[1758852991297,0.37002407,109790.0,109780.0,0.46007723]
[1758852993597,0.1010281,109790.0,109780.0,0.46007723]
[1758852993797,0.37002407,109790.0,109780.0,0.46007723]
[1758852994195,0.37002407,109790.0,109780.0,0.19108126]
[1758852994394,0.37002407,109790.0,109780.0,0.46007723]
[1758852995493,0.37002407,109790.0,109780.0,0.19108126]
[1758852995698,0.37002407,109790.0,109780.0,0.46007723]
[1758852996299,0.37002407,109790.0,109780.0,0.09999414]
[1758852999406,0.1010281,109790.0,109780.0,0.36899011]
[1758852999606,0.37002407,109790.0,109780.0,0.09999414]
[1758852999904,0.37002407,109790.0,109780.0,0.36899011]
[1758853000607,0.01,109790.0,109780.0,1.5809096]
[1758853000905,0.86384,109790.0,109780.0,1.5809096]
[1758853001506,0.86384,109790.0,109780.0,1.51573546]
[1758853001906,0.86384,109790.0,109780.0,1.11573546]
[1758853001907,0.9548681,109790.0,109780.0,1.11573546]
[1758853002603,0.9478681,109790.0,109780.0,1.12073546]
[1758853002907,0.85684,109790.0,109780.0,1.12073546]
[1758853003607,0.85384,109790.0,109780.0,1.12073546]
[1758853004310,0.9448681,109790.0,109780.0,0.58274352]
[1758853004510,0.9448681,109790.0,109780.0,1.12073546]
[1758853004708,0.0910224,109800.0,109790.0,0.03646]
[1758853004903,0.8538,109800.0,109790.0,0.73155141]
[1758853005108,0.9358448,109800.0,109790.0,0.73155141]
[1758853005409,0.9358448,109800.0,109790.0,1.00054738]
[1758853005706,0.0910224,109800.0,109790.0,0.93525194]
[1758853005911,0.9448224,109800.0,109790.0,0.93525194]
[1758853006210,0.9448224,109800.0,109790.0,0.66625597]
[1758853006409,0.9458224,109800.0,109790.0,0.39726]
[1758853006612,0.9458224,109800.0,109790.0,0.66625597]
[1758853006810,0.9468224,109800.0,109790.0,0.66625597]
[1758853007301,0.9468224,109800.0,109790.0,0.39726]
[1758853007506,1.21481837,109800.0,109790.0,0.39726]
[1758853007810,1.21481837,109800.0,109790.0,0.66625597]
[1758853008212,0.9458224,109800.0,109790.0,0.66625597]
[1758853008413,1.21481837,109800.0,109790.0,0.73156673]
[1758853008613,0.9458224,109800.0,109790.0,0.82095137]
[1758853009113,0.9448224,109800.0,109790.0,0.82595137]
[1758853011116,0.9448224,109800.0,109790.0,0.76064061]
[1758853011520,0.9448224,109800.0,109790.0,0.40226]
[1758853011819,0.9448224,109800.0,109790.0,0.76064061]
[1758853012831,0.9448224,109800.0,109790.0,0.04146]
[1758853013029,0.9448224,109800.0,109790.0,0.08394076]
[1758853013030,2.06400301,109800.0,109790.0,0.08394076]
[1758853013320,2.06400301,109800.0,109790.0,0.01863]
[1758853014026,2.06500301,109800.0,109790.0,0.01863]
[1758853014529,2.06500301,109800.0,109790.0,0.0676444]
[1758853015027,2.06600301,109800.0,109790.0,0.0626444]
[1758853017725,2.42438362,109800.0,109790.0,0.0490144]
[1758853018123,2.06600301,109800.0,109790.0,0.0490144]
[1758853018523,2.06600301,109800.0,109790.0,0.0621144]
[1758853019229,1.66600301,109800.0,109790.0,0.0355]
[1758853019823,1.3076224,109800.0,109790.0,0.0355]
[1758853020025,1.66600301,109800.0,109790.0,0.0355]
[1758853020325,1.66600301,109800.0,109790.0,0.0131]
[1758853021836,1.66600301,109800.0,109790.0,0.06211932]
[1758853022037,3.51340301,109800.0,109790.0,0.04901932]
[1758853022832,0.0910281,109790.0,109780.0,0.07843076]
[1758853023031,0.81020871,109790.0,109780.0,0.01312]
[1758853024638,1.21020871,109790.0,109780.0,0.01312]
[1758853025442,0.8518281,109790.0,109780.0,0.03552]
[1758853025741,0.9447881,109790.0,109780.0,0.03552]
[1758853025934,0.9447881,109790.0,109780.0,0.39390061]
[1758853026239,0.47046369,109800.0,109790.0,0.03429]
[1758853026438,1.6830443,109800.0,109790.0,0.03429]
[1758853026938,1.32466369,109800.0,109790.0,0.03429]
[1758853027140,0.4518259,109800.0,109790.0,0.39267061]
[1758853027441,0.857,109800.0,109790.0,0.81878137]
[1758853027641,0.001,109800.0,109790.0,0.81878137]
[1758853027942,0.857,109800.0,109790.0,0.81878137]
[1758853028135,0.857,109800.0,109790.0,0.46040076]
[1758853028337,0.9480198,109800.0,109790.0,0.46040076]
[1758853028733,0.857,109800.0,109790.0,1.21878137]
[1758853029141,0.85828,109800.0,109790.0,0.86040076]
[1758853029340,0.85828,109800.0,109790.0,1.21878137]
[1758853029641,0.85832,109800.0,109790.0,1.21878137]
[1758853029838,0.9483398,109800.0,109790.0,0.86540076]
[1758853030846,0.9473398,109800.0,109790.0,0.86540076]
[1758853031245,0.85632,109800.0,109790.0,1.22378137]
[1758853031645,0.85632,109800.0,109790.0,0.86540076]
[1758853032548,0.9473398,109800.0,109790.0,0.86540076]
[1758853032742,0.9473398,109800.0,109790.0,1.22378137]
[1758853032940,0.85632,109800.0,109790.0,1.22378137]
[1758853033134,0.85632,109800.0,109790.0,0.86040076]
[1758853033345,0.9473398,109800.0,109790.0,0.86540076]
[1758853034342,0.9473398,109800.0,109790.0,1.22378137]
[1758853036238,0.9483398,109800.0,109790.0,1.22378137]
[1758853036949,0.9473398,109800.0,109790.0,1.22378137]
[1758853037150,0.9473398,109800.0,109790.0,0.86540076]
[1758853037745,0.9473398,109800.0,109790.0,1.22378137]
[1758853038048,2.4432168,109800.0,109790.0,0.005]
[1758853038248,2.4432168,109800.0,109780.0,0.01312]
[1758853038249,0.0910281,109790.0,109780.0,0.01312]
[1758853038561,3.01836871,109790.0,109780.0,0.01312]
[1758853039442,3.02536871,109790.0,109780.0,0.01312]
[1758853040251,3.02936871,109790.0,109780.0,0.01312]
[1758853040653,3.04236871,109790.0,109780.0,0.01312]
[1758853042346,3.04136871,109790.0,109780.0,0.01312]
[1758853042849,3.04136871,109790.0,109780.0,0.06211861]
[1758853043048,3.03636871,109790.0,109780.0,0.06211861]
[1758853043250,3.03736871,109790.0,109780.0,0.01312]
[1758853045258,3.02236871,109790.0,109780.0,0.01312]
[1758853045558,3.03836871,109790.0,109780.0,0.01312]
[1758853046858,3.03936871,109790.0,109780.0,0.01312]
[1758853047059,3.03336871,109790.0,109780.0,0.01312]
[1758853049152,3.02936871,109790.0,109780.0,0.01312]
[1758853049350,3.03236871,109790.0,109780.0,0.01312]
[1758853049559,3.03236871,109790.0,109780.0,0.03432]
[1758853049560,3.02136871,109790.0,109780.0,0.03432]
[1758853049758,3.03836871,109790.0,109780.0,0.03432]
[1758853050262,3.03236871,109790.0,109780.0,0.03432]
[1758853050959,3.03236871,109790.0,109780.0,0.01312]
[1758853056559,1.18500871,109790.0,109780.0,0.03498]
[1758853056765,3.88728871,109790.0,109780.0,0.03498]
[1758853057860,3.88428871,109790.0,109780.0,0.03498]
[1758853058066,3.88528871,109790.0,109780.0,0.03498]
[1758853059165,0.006,109790.0,109780.0,0.03498]
[1758853059368,0.9516679,109790.0,109780.0,0.85867137]
[1758853059670,0.9516679,109790.0,109780.0,0.10029076]
[1758853060457,0.86064,109790.0,109780.0,0.10029076]
[1758853060659,0.86064,109790.0,109780.0,0.54970777]
[1758853060860,0.85564,109790.0,109780.0,0.45967137]
[1758853061060,0.85564,109790.0,109780.0,1.22047137]
[1758853061467,0.85464,109790.0,109780.0,1.22047137]
[1758853062271,0.85464,109790.0,109780.0,1.31150757]
[1758853063261,0.47013958,109800.0,109790.0,0.03507]
[1758853063461,1.23343578,109800.0,109790.0,0.54978181]
[1758853063661,0.88283055,109810.0,109800.0,0.03507]
[1758853063662,0.52444994,109810.0,109800.0,0.03507]
[1758853063866,1.37836994,109810.0,109800.0,0.03507]
[1758853064074,1.73675055,109810.0,109800.0,0.03507]
[1758853065168,1.37836994,109810.0,109800.0,0.03507]
[1758853065475,1.37936994,109810.0,109800.0,0.03507]
[1758853065869,1.01856994,109810.0,109800.0,0.03507]
[1758853067377,0.85484,109810.0,109800.0,1.31057351]
[1758853067577,0.85984,109810.0,109800.0,1.24527041]
[1758853067780,0.85984,109810.0,109800.0,1.33634094]
[1758853068269,0.006,109810.0,109800.0,1.40154244]
[1758853068474,0.7336,109810.0,109800.0,1.33634094]
[1758853068674,0.72837,109810.0,109800.0,1.33634094]
[1758853068875,0.6336,109810.0,109800.0,1.41779575]
[1758853069277,0.6336,109810.0,109800.0,1.33734094]
[1758853069476,0.6336,109810.0,109800.0,1.41879575]
[1758853069678,0.6336,109810.0,109800.0,1.33734094]
[1758853070474,0.0909988,109830.0,109810.0,0.0910059]
[1758853070679,0.35964435,109830.0,109820.0,0.66451555]
[1758853070879,1.28617136,109830.0,109820.0,0.66451555]
[1758853071283,1.01752581,109830.0,109820.0,0.66451555]
[1758853071476,1.28617136,109830.0,109820.0,0.66451555]
[1758853071677,1.01852581,109830.0,109820.0,0.66451555]
[1758853071978,1.01852581,109830.0,109820.0,0.39587]
[1758853072184,1.64797136,109830.0,109820.0,0.03507]
[1758853072584,1.91561691,109830.0,109820.0,0.01321]
[1758853072885,1.64997136,109830.0,109820.0,0.01321]
[1758853073089,1.64997136,109830.0,109820.0,0.03507]
[1758853073387,1.64997136,109830.0,109820.0,0.01321]
[1758853073690,1.65297136,109830.0,109820.0,0.01321]
[1758853075086,1.65297136,109830.0,109820.0,0.03548]
[1758853077493,1.65097136,109830.0,109820.0,0.03548]
[1758853077693,1.91961691,109830.0,109820.0,0.01321]
[1758853077995,2.31961691,109830.0,109820.0,0.01321]
[1758853078389,2.31861691,109830.0,109820.0,0.01321]
[1758853078696,2.31961691,109830.0,109820.0,0.01321]
[1758853079296,2.31961691,109830.0,109810.0,0.01321]
[1758853079297,0.0910032,109820.0,109810.0,0.01321]
[1758853079598,0.9890943,109820.0,109810.0,0.01321]
[1758853080793,0.9890943,109820.0,109810.0,0.03548]
[1758853081496,0.4518032,109820.0,109810.0,0.03548]
[1758853081693,0.9920943,109820.0,109810.0,0.03548]
[1758853081996,1.0000943,109820.0,109810.0,0.03548]
[1758853082197,1.0000943,109820.0,109810.0,0.01321]
[1758853082898,1.0000943,109820.0,109810.0,0.03548]
[1758853083500,0.73144875,109820.0,109810.0,0.03548]
[1758853083701,0.8646,109820.0,109810.0,0.70412555]
[1758853084202,1.22424885,109820.0,109810.0,0.70412555]
[1758853085005,0.8646,109820.0,109810.0,0.70412555]
[1758853085208,0.011,109820.0,109810.0,0.97835374]
[1758853085499,0.86552,109820.0,109810.0,0.59164022]
[1758853085702,0.86552,109820.0,109810.0,1.12893132]
[1758853085896,0.86552,109820.0,109810.0,1.48973132]
[1758853086599,0.86252,109820.0,109810.0,1.46108577]
[1758853086903,0.85752,109820.0,109810.0,1.46108577]
[1758853087295,0.85552,109820.0,109810.0,1.19244022]
[1758853087601,0.85452,109820.0,109810.0,1.46508577]
[1758853089993,0.85452,109820.0,109810.0,1.19644022]
[1758853090199,0.945523,109820.0,109810.0,1.06508577]
[1758853091087,0.85452,109820.0,109810.0,1.15609707]
[1758853091488,0.85452,109820.0,109810.0,0.91609707]
[1758853091790,0.85452,109820.0,109810.0,1.31609707]
[1758853091994,0.85452,109820.0,109810.0,1.82474262]
[1758853093102,0.85452,109820.0,109810.0,1.75964464]
[1758853093306,0.85452,109820.0,109810.0,1.84109945]
[1758853093695,0.0909901,109840.0,109830.0,0.03525]
[1758853093996,0.9467501,109840.0,109830.0,0.72990359]
[1758853094199,0.9467501,109840.0,109830.0,0.66469555]
[1758853094200,1.18828565,109840.0,109830.0,0.66469555]
[1758853094597,0.9196401,109840.0,109830.0,0.66469555]
[1758853094906,0.9224701,109840.0,109830.0,0.66469555]
[1758853095200,0.9224701,109840.0,109830.0,0.72990359]
[1758853095400,0.85876,109840.0,109830.0,0.75569025]
[1758853095701,0.85848,109840.0,109830.0,1.22089829]
[1758853095907,0.86648,109840.0,109830.0,1.25969238]
[1758853096094,0.86632,109840.0,109830.0,1.25969238]
[1758853097807,0.9573064,109840.0,109830.0,1.25969238]
[1758853098205,0.9573064,109840.0,109830.0,1.16869768]
[1758853098403,0.9573064,109840.0,109830.0,0.90005213]
[1758853098598,0.9573064,109840.0,109830.0,1.16869768]
[1758853100001,0.9573064,109840.0,109830.0,0.72990359]
[1758853100198,0.37063195,109840.0,109830.0,0.72990359]
[1758853100505,1.22563195,109840.0,109830.0,0.72990359]
[1758853100704,0.1019864,109840.0,109830.0,0.72990359]
[1758853100906,0.9563864,109840.0,109830.0,0.72990359]
[1758853101294,0.37063195,109840.0,109830.0,0.46125804]
[1758853101499,1.8549975,109840.0,109830.0,0.08411232]
[1758853102004,1.58635195,109840.0,109830.0,0.08411232]
[1758853102206,1.8549975,109840.0,109830.0,0.08411232]
[1758853102904,2.2549975,109840.0,109830.0,0.08411232]
[1758853103109,1.7177064,109840.0,109830.0,0.08411232]
[1758853103307,2.2549975,109840.0,109830.0,0.08411232]
[1758853104508,2.2549975,109840.0,109830.0,0.06147232]
[1758853104807,2.2549975,109840.0,109830.0,0.01261]
[1758853107410,2.52364305,109840.0,109830.0,0.01261]
[1758853107606,2.2549975,109840.0,109830.0,0.01261]
[1758853108008,2.2549975,109840.0,109820.0,0.06147232]
[1758853108009,0.0909947,109830.0,109820.0,0.01261]
[1758853108204,0.9890858,109830.0,109820.0,0.01261]
[1758853108415,0.091003,109820.0,109810.0,0.06207232]
[1758853108712,1.8432141,109820.0,109810.0,0.06207232]
[1758853109704,2.2432141,109820.0,109810.0,0.06607232]
[1758853110112,2.2432141,109820.0,109810.0,0.01721]
[1758853110812,2.2512141,109820.0,109810.0,0.01321]
[1758853111508,1.78834198,109820.0,109810.0,0.01321]
[1758853111709,2.32563308,109820.0,109810.0,0.01321]
[1758853112713,2.33363308,109820.0,109810.0,0.01321]
[1758853113518,2.33063308,109820.0,109810.0,0.01321]
[1758853113713,2.33463308,109820.0,109810.0,0.01321]
[1758853116216,2.32963308,109820.0,109810.0,0.01321]
[1758853116609,0.0910113,109810.0,109800.0,0.06207232]
[1758853116912,0.9891024,109810.0,109800.0,0.06207232]
[1758853117111,1.3891024,109810.0,109800.0,0.01321]
[1758853117708,3.2360624,109810.0,109800.0,0.01321]
[1758853117910,0.0910196,109800.0,109790.0,0.06204232]
[1758853118112,1.8427907,109800.0,109790.0,0.01318]
[1758853119609,1.88014108,109800.0,109790.0,0.01318]
[1758853120421,1.88314108,109800.0,109790.0,0.01318]
[1758853122122,1.34584998,109800.0,109790.0,0.03464]
[1758853122315,1.88314108,109800.0,109790.0,0.03464]
[1758853123919,0.72346515,109800.0,109790.0,0.70328555]
[1758853124120,1.57722515,109800.0,109790.0,0.43464]
[1758853124322,1.8458707,109800.0,109790.0,0.01318]
[1758853124920,1.8458707,109800.0,109790.0,0.03464]
[1758853126524,1.57722515,109800.0,109790.0,0.70328555]
[1758853126719,1.57722515,109800.0,109790.0,0.43464]
[1758853127423,1.3085796,109800.0,109790.0,0.43464]
[1758853127621,1.12540555,109800.0,109790.0,0.57453012]
[1758853127821,1.12540555,109800.0,109790.0,0.84317567]
[1758853128123,1.12540555,109800.0,109790.0,0.88120036]
[1758853128313,1.21642515,109800.0,109790.0,0.79017256]
[1758853128518,1.21642515,109800.0,109790.0,0.75214787]
[1758853129528,1.21542515,109800.0,109790.0,0.75214787]
[1758853130632,1.21342515,109800.0,109790.0,0.75614787]
[1758853131025,1.21342515,109800.0,109790.0,0.48750232]
[1758853131226,1.21342515,109800.0,109790.0,0.70728555]
[1758853132626,0.9447796,109800.0,109790.0,0.43864]
[1758853132828,0.9447796,109800.0,109790.0,0.79944]
[1758853133825,2.60481984,109810.0,109790.0,0.79944]
[1758853133826,0.4518163,109810.0,109800.0,0.1256596]
[1758853134025,1.21456,109810.0,109800.0,0.1256596]
[1758853134227,0.85376,109810.0,109800.0,0.84485856]
[1758853134526,0.85376,109810.0,109800.0,0.5492666]
[1758853135032,0.85376,109810.0,109800.0,0.9100666]
[1758853135230,0.85576,109810.0,109800.0,0.9100666]
[1758853135931,0.9467713,109810.0,109800.0,0.9100666]
[1758853136131,0.9477713,109810.0,109800.0,0.9100666]
[1758853136437,0.9477713,109810.0,109800.0,0.55166764]
[1758853136832,0.9467713,109810.0,109800.0,0.55166764]
[1758853137027,0.9447713,109810.0,109800.0,0.55566764]
[1758853138237,0.9447713,109810.0,109800.0,0.46464804]
[1758853139038,1.30317026,109810.0,109800.0,0.46464804]
[1758853140236,1.66397026,109810.0,109800.0,0.10384804]
[1758853141336,1.3055713,109810.0,109800.0,0.09984804]
[1758853141537,1.66597026,109810.0,109800.0,0.09984804]
[1758853142037,0.9467713,109810.0,109800.0,0.09984804]